bitfinex/quotes_SOLUSD_20250310
["timestamp","ask_amount","ask_price","bid_price","bid_amount"]
[1741602899063,89.66118618,127.65,127.6,24.00965993]
[1741602899646,97.49518618,127.65,127.6,24.00965993]
[1741602899840,97.49518618,127.65,127.61,7.8363]
[1741602900049,89.66118618,127.65,127.61,7.8363]
[1741602900350,89.66118618,127.65,127.61,31.84595993]
[1741602900351,65.65152625,127.65,127.61,31.84595993]
[1741602900853,65.65152625,127.65,127.59,24.00965993]
[1741602900854,24.00965993,127.64,127.59,24.00965993]
[1741602901031,89.66118618,127.65,127.59,24.00965993]
[1741602901234,0.03,127.66,127.61,24.00965993]
[1741602901431,0.03,127.66,127.62,24.00965993]
[1741602901952,0.03,127.66,127.61,24.00965993]
[1741602902154,0.03,127.66,127.62,7.8357]
[1741602902534,0.03,127.66,127.63,24.00965993]
[1741602902735,0.03,127.66,127.65,24.00965993]
[1741602902939,0.03,127.66,127.63,25.52375993]
[1741602903459,24.03965993,127.66,127.61,31.84575993]
[1741602904153,0.03,127.66,127.62,24.00965993]
[1741602904456,0.03,127.66,127.63,24.00965993]
[1741602906729,0.03,127.66,127.63,31.84465993]
[1741602907049,0.03,127.66,127.64,24.00965993]
[1741602907253,0.03,127.66,127.63,7.835]
[1741602907254,0.03,127.66,127.65,24.00965993]
[1741602908561,0.03,127.66,127.65,31.84355993]
[1741602909652,0.0001,127.66,127.65,40.2394215]
[1741602909859,0.0001,127.66,127.65,33.43925993]
[1741602910253,0.0001,127.66,127.65,9.4296]
[1741602910449,0.0001,127.66,127.64,31.84405993]
[1741602910761,0.0001,127.66,127.62,25.67065993]
[1741602911075,24.00975993,127.66,127.61,24.00965993]
[1741602911362,24.00975993,127.66,127.6,31.84655993]
[1741602911742,24.00975993,127.66,127.61,24.00965993]
[1741602911930,0.0001,127.66,127.64,24.00965993]
[1741602912132,0.0001,127.66,127.61,0.14216157]
[1741602912133,0.0001,127.66,127.63,24.00965993]
[1741602912757,0.0001,127.66,127.63,31.84435993]
[1741602913182,0.0001,127.66,127.63,24.00965993]
[1741602913470,24.00965993,127.65,127.59,9.5189]
[1741602913678,24.00965993,127.65,127.59,33.52855993]
[1741602913880,0.0001,127.66,127.59,9.5189]
[1741602913881,18.79191043,127.66,127.59,9.5189]
[1741602914054,24.00965993,127.64,127.59,33.52855993]
[1741602914475,7.8351,127.63,127.59,24.07265993]
[1741602915172,24.00965993,127.64,127.59,31.91005993]
[1741602916174,7.8336,127.66,127.6,24.00965993]
[1741602916349,0.0001,127.66,127.63,24.00965993]
[1741602916550,0.0001,127.66,127.63,31.84435993]
[1741602916751,0.0001,127.66,127.61,24.00965993]
[1741602916951,24.00975993,127.66,127.61,31.84575993]
[1741602917159,0.0001,127.66,127.62,24.00965993]
[1741602917475,0.03,127.65,127.61,31.84575993]
[1741602917675,0.03,127.65,127.61,24.00965993]
[1741602917971,24.00965993,127.64,127.59,0.063]
[1741602918375,24.00965993,127.64,127.59,7.9005]
[1741602918583,7.8351,127.63,127.59,0.063]
[1741602918873,24.00965993,127.62,127.59,0.063]
[1741602919256,95.96258618,127.64,127.59,24.07265993]
[1741602919463,71.95292625,127.64,127.59,24.07265993]
[1741602919664,71.95292625,127.64,127.6,24.00965993]
[1741602919987,103.79718618,127.64,127.59,0.063]
[1741602920177,24.00965993,127.63,127.59,0.063]
[1741602920788,31.84535993,127.62,127.59,0.063]
[1741602921484,24.00965993,127.62,127.59,0.063]
[1741602921669,31.84495993,127.63,127.59,0.063]
[1741602921859,24.00965993,127.63,127.59,0.063]
[1741602922061,71.95292625,127.64,127.59,24.07265993]
[1741602922367,65.65152625,127.64,127.61,24.00965993]
[1741602922889,0.03,127.65,127.62,31.84535993]
[1741602923183,0.03,127.65,127.62,24.00965993]
[1741602923482,0.03,127.65,127.6,19.5913]
[1741602923483,31.87365993,127.65,127.6,31.84655993]
[1741602923671,31.87365993,127.65,127.6,7.8369]
[1741602923990,31.87365993,127.65,127.59,0.063]
[1741602923991,24.00965993,127.61,127.59,0.063]
[1741602924355,24.00965993,127.62,127.59,0.063]
[1741602924583,84.30117511,127.63,127.59,7.9004]
[1741602924584,89.66118618,127.63,127.59,7.9004]
[1741602924786,89.66118618,127.63,127.59,0.063]
[1741602924960,97.49638618,127.63,127.59,0.063]
[1741602925383,42.80147036,127.62,127.59,0.063]
[1741602925579,24.00965993,127.6,127.59,0.063]
[1741602926272,25.45741043,127.62,127.59,0.063]
[1741602926577,49.46707036,127.62,127.59,0.063]
[1741602926779,31.84595993,127.61,127.59,0.063]
[1741602927361,42.80147036,127.6,127.59,0.063]
[1741602928858,24.00965993,127.61,127.59,0.063]
[1741602929062,72.31712625,127.62,127.59,0.063]
[1741602929477,65.65152625,127.62,127.59,0.063]
[1741602930196,19.94216157,127.64,127.59,24.07265993]
[1741602930197,85.45152625,127.64,127.59,24.07265993]
[1741602930367,65.65152625,127.64,127.62,24.00965993]
[1741602930567,0.03,127.65,127.62,24.00965993]
[1741602931165,0.03,127.65,127.62,31.84505993]
[1741602932482,0.03,127.65,127.62,7.8354]
[1741602932976,0.03,127.65,127.63,24.00965993]
[1741602933178,0.03,127.65,127.64,24.00965993]
[1741602933385,0.03,127.65,127.64,25.55335993]
[1741602933982,0.03,127.65,127.64,1.5437]
[1741602934191,0.03,127.65,127.62,7.8354]
[1741602934498,0.03,127.65,127.62,24.00965993]
[1741602934870,0.03,127.65,127.61,25.61815993]
[1741602935070,24.03965993,127.65,127.59,31.90995993]
[1741602935271,24.00965993,127.64,127.59,24.07265993]
[1741602936197,24.00965993,127.63,127.59,0.063]
[1741602937073,84.33117511,127.65,127.59,24.07265993]
[1741602937397,0.03,127.65,127.63,24.00965993]
[1741602938497,0.03,127.65,127.64,24.00965993]
[1741602939070,0.03,127.65,127.64,31.84415993]
[1741602939266,0.03,127.65,127.63,24.00965993]
[1741602939471,0.03,127.65,127.61,24.00965993]
[1741602939903,24.03965993,127.65,127.6,31.84655993]
[1741602940079,89.69118618,127.65,127.6,31.84655993]
[1741602940288,65.68152625,127.65,127.61,38.41840946]
[1741602940609,65.68152625,127.65,127.62,0.063]
[1741602942389,111.93403571,127.65,127.62,0.063]
[1741602942589,38.41840946,127.64,127.62,0.063]
[1741602942903,73.51562625,127.65,127.62,0.063]
[1741602942904,104.09993571,127.65,127.62,0.063]
[1741602943082,65.68152625,127.65,127.62,0.063]
[1741602943509,65.68152625,127.65,127.62,38.48140946]
[1741602944006,65.68152625,127.65,127.62,0.063]
[1741602944205,65.68152625,127.65,127.62,38.48140946]
[1741602944500,65.68152625,127.65,127.63,38.41840946]
[1741602944501,0.03,127.65,127.63,38.41840946]
[1741602945282,0.03,127.65,127.64,7.8345]
[1741602945482,0.03,127.65,127.64,46.25290946]
[1741602947207,0.03,127.65,127.64,7.8345]
[1741602948007,0.03,127.65,127.64,46.25290946]
[1741602949906,0.0001,127.66,127.64,46.25290946]
[1741602950105,0.0001,127.66,127.65,38.41840946]
[1741602950485,0.0001,127.66,127.64,7.8345]
[1741602951285,0.0001,127.66,127.64,46.25290946]
[1741602951486,0.0001,127.66,127.65,38.41840946]
[1741602951811,0.0001,127.66,127.64,46.25290946]
[1741602952716,0.0001,127.66,127.62,38.48140946]
[1741602953314,0.0001,127.66,127.62,46.31690946]
[1741602953519,0.0001,127.66,127.63,38.41840946]
[1741602954714,0.0001,127.66,127.62,46.31690946]
[1741602954881,0.0001,127.66,127.63,38.41840946]
[1741602955081,0.0001,127.66,127.62,46.31690946]
[1741602955292,38.41840946,127.65,127.62,0.063]
[1741602956079,38.41840946,127.64,127.62,0.063]
[1741602956493,0.14226157,127.66,127.62,0.063]
[1741602956494,38.41840946,127.65,127.62,0.063]
[1741602957094,0.14226157,127.66,127.62,0.063]
[1741602957407,0.0001,127.66,127.62,38.48140946]
[1741602957705,0.0001,127.66,127.63,38.41840946]
[1741602957914,0.0001,127.66,127.62,38.48140946]
[1741602958206,46.25190946,127.66,127.62,0.063]
[1741602959104,38.41840946,127.65,127.62,0.063]
[1741602959608,38.41840946,127.64,127.62,0.063]
[1741602959779,122.86174614,127.63,127.62,0.063]
[1741602959985,142.66174614,127.63,127.62,0.063]
[1741602960287,128.27651687,127.63,127.62,0.063]
[1741602961503,136.25377844,127.63,127.62,0.063]
[1741602961692,160.28695863,127.63,127.62,0.063]
[1741602962094,136.25377844,127.63,127.62,0.063]
[1741602962298,150.67375606,127.63,127.62,0.063]
[1741602963596,157.01144745,127.63,127.62,0.063]
[1741602963919,18.933972,127.57,127.53,0.063]
[1741602964118,57.38712981,127.54,127.53,0.063]
[1741602965814,65.22772981,127.54,127.53,0.063]
[1741602968727,57.38712981,127.54,127.53,0.063]
[1741602968887,65.22772981,127.54,127.53,0.063]
[1741602969802,57.38712981,127.54,127.53,0.063]
[1741602970013,65.22772981,127.54,127.53,0.063]
[1741602972187,38.933972,127.5,127.49,0.063]
[1741602972405,115.84028762,127.5,127.49,0.063]
[1741602973337,123.68338762,127.5,127.49,0.063]
[1741602973707,123.68338762,127.5,127.48,0.063]
[1741602973708,18.933972,127.49,127.48,0.063]
[1741602973917,57.38712981,127.49,127.48,0.063]
[1741602974129,81.1,127.49,127.48,0.063]
[1741602974330,81.1,127.51,127.48,38.51615781]
[1741602974717,81.1,127.51,127.48,0.063]
[1741602975138,88.9425,127.51,127.48,0.063]
[1741602975319,18.79181043,127.5,127.48,0.063]
[1741602975923,57.24496824,127.49,127.48,0.063]
[1741602977026,18.79181043,127.49,127.48,0.063]
[1741602977232,81.1,127.5,127.48,0.063]
[1741602977835,127.39645781,127.5,127.48,0.063]
[1741602978441,81.1,127.5,127.48,0.063]
[1741602978662,127.39625781,127.5,127.48,0.063]
[1741602978818,57.24496824,127.49,127.48,0.063]
[1741602979945,85.03082981,127.49,127.48,0.063]
[1741602981053,38.59181043,127.49,127.48,0.063]
[1741602981743,84.88866824,127.49,127.48,0.063]
[1741602982347,85.03082981,127.49,127.48,0.063]
[1741602983050,65.23082981,127.49,127.48,0.063]
[1741602983246,0.28432314,127.49,127.48,0.063]
[1741602983428,18.933972,127.49,127.48,0.063]
[1741602983632,46.29645781,127.5,127.48,0.063]
[1741602984455,57.38712981,127.49,127.48,0.063]
[1741602985548,57.24496824,127.49,127.48,0.063]
[1741602985728,38.45315781,127.5,127.48,0.063]
[1741602986450,0.14216157,127.5,127.48,0.063]
[1741602986746,38.59531938,127.5,127.48,0.063]
[1741602987348,76.90280667,127.51,127.48,0.063]
[1741602987553,76.90280667,127.51,127.48,38.51615781]
[1741602987554,81.1,127.51,127.48,38.51615781]
[1741602987751,127.39595781,127.51,127.48,0.063]
[1741602988048,18.64964886,127.49,127.48,0.063]
[1741602988238,18.79181043,127.5,127.48,0.063]
[1741602988432,81.1,127.51,127.48,7.9073]
[1741602988653,88.9426,127.51,127.48,0.063]
[1741602988851,57.24496824,127.5,127.48,0.063]
[1741602989053,57.24496824,127.49,127.48,0.063]
[1741602989350,18.79181043,127.49,127.48,0.063]
[1741602990043,18.64964886,127.49,127.48,0.063]
[1741602990250,81.163,127.51,127.48,0.063]
[1741602994959,81.163,127.51,127.49,24.06379032]
[1741602995336,0.063,127.51,127.5,30.09919032]
[1741602995658,0.14216157,127.58,127.54,1.6294]
[1741602995860,81.1,127.58,127.56,24.06379032]
[1741602996364,81.1,127.58,127.55,24.06379032]
[1741602996740,81.1,127.58,127.54,25.69319032]
[1741602996935,81.1,127.58,127.55,24.06379032]
[1741602997137,81.1,127.58,127.55,31.90369032]
[1741602997735,105.16379032,127.58,127.54,1.6294]
[1741602997937,81.1,127.58,127.54,33.53359032]
[1741602998149,81.1,127.58,127.55,24.06379032]
[1741602998464,81.1,127.58,127.55,38.45461182]
[1741602998761,81.1,127.59,127.55,38.45461182]
[1741602998961,81.1,127.59,127.57,38.45461182]
[1741602999650,81.1,127.59,127.56,38.45461182]
[1741603000641,81.1,127.59,127.57,38.45461182]
[1741603000844,0.063,127.58,127.54,380.2747]
[1741603001041,0.063,127.58,127.57,52.86721182]
[1741603002658,0.063,127.62,127.57,72.46421182]
[1741603002858,0.063,127.62,127.61,38.45461182]
[1741603003037,0.063,127.62,127.6,38.45461182]
[1741603003862,0.063,127.62,127.61,38.45461182]
[1741603005067,0.063,127.62,127.61,46.29091182]
[1741603005442,0.063,127.62,127.61,38.45461182]
[1741603005643,0.063,127.62,127.6,40.02931182]
[1741603006045,0.063,127.62,127.6,1.5747]
[1741603006958,0.063,127.62,127.6,47.86591182]
[1741603007164,0.063,127.62,127.61,46.29091182]
[1741603007350,0.063,127.62,127.61,38.45461182]
[1741603007658,0.063,127.62,127.61,46.29091182]
[1741603008362,0.063,127.62,127.61,84.88768521]
[1741603008565,0.063,127.62,127.61,46.43307339]
[1741603008937,0.063,127.64,127.63,20.0]
[1741603009137,0.063,127.64,127.63,72.87921182]
[1741603011654,0.063,127.65,127.63,93.36448382]
[1741603011856,81.1,127.74,127.67,20.0]
[1741603012057,81.1,127.74,127.71,38.45461182]
[1741603012264,81.1,127.74,127.7,38.45461182]
[1741603012479,81.1,127.74,127.69,38.45461182]
[1741603012983,38.45461182,127.73,127.68,38.45461182]
[1741603013154,127.38311182,127.74,127.69,38.45461182]
[1741603013479,88.9285,127.74,127.69,38.45461182]
[1741603013652,127.38311182,127.74,127.69,38.45461182]
[1741603014364,127.38311182,127.74,127.69,46.28591182]
[1741603014567,88.9285,127.74,127.69,46.28591182]
[1741603014863,88.9285,127.74,127.69,7.8313]
[1741603015066,127.38311182,127.74,127.69,46.28591182]
[1741603015260,88.9285,127.74,127.69,46.28591182]
[1741603015461,81.1,127.74,127.69,46.28591182]
[1741603015955,127.38301182,127.74,127.69,46.28591182]
[1741603016879,81.1,127.74,127.7,38.45461182]
[1741603017059,81.1,127.74,127.71,38.45461182]
[1741603017376,81.1,127.74,127.71,46.28471182]
[1741603018273,81.1,127.74,127.71,7.8301]
[1741603018679,81.1,127.74,127.7,31.80661053]
[1741603019683,81.1,127.74,127.71,23.97611053]
[1741603020178,81.1,127.74,127.71,31.80611053]
[1741603020381,112.90451053,127.74,127.68,7.832]
[1741603020691,81.1,127.73,127.71,23.97611053]
[1741603020869,81.1,127.74,127.71,23.97611053]
[1741603021266,81.1,127.74,127.69,1.601]
[1741603021579,23.97611053,127.72,127.67,31.80841053]
[1741603021759,81.1,127.71,127.67,31.80841053]
[1741603021948,81.1,127.71,127.68,23.97611053]
[1741603022150,81.1,127.74,127.7,23.97611053]
[1741603022356,112.90451053,127.74,127.69,31.80751053]
[1741603022555,18.64964886,127.73,127.69,31.80751053]
[1741603022960,105.2182721,127.74,127.69,23.97611053]
[1741603023186,81.1,127.74,127.71,23.97611053]
[1741603023979,81.13,127.74,127.73,23.97611053]
[1741603024183,0.03,127.74,127.73,31.80511053]
[1741603024769,0.03,127.74,127.72,31.80541053]
[1741603026060,0.03,127.74,127.72,23.97611053]
[1741603026266,0.03,127.74,127.71,31.80621053]
[1741603027083,0.03,127.74,127.71,7.8301]
[1741603027280,42.79792096,127.74,127.69,31.80711053]
[1741603027466,105.07611053,127.73,127.69,7.831]
[1741603027667,81.1,127.73,127.69,31.80711053]
[1741603027982,105.07611053,127.73,127.68,23.97611053]
[1741603028177,112.90581053,127.72,127.67,31.80871053]
[1741603030798,23.97611053,127.68,127.62,7.8357]
[1741603030967,23.97611053,127.66,127.62,7.8357]
[1741603031166,81.1,127.67,127.63,23.97611053]
[1741603031371,81.1,127.67,127.65,23.97611053]
[1741603031588,81.1,127.69,127.65,23.97611053]
[1741603031770,105.07611053,127.69,127.64,23.97611053]
[1741603032393,81.1,127.69,127.65,23.97611053]
[1741603032775,18.79181043,127.68,127.64,23.97611053]
[1741603033388,0.14216157,127.67,127.63,23.97611053]
[1741603034397,42.62575939,127.68,127.64,7.8345]
[1741603034568,18.64964886,127.68,127.64,31.81061053]
[1741603034985,81.24216157,127.69,127.66,23.97611053]
[1741603035765,5.44786326,127.72,127.67,23.97611053]
[1741603035766,81.1,127.72,127.67,23.97611053]
[1741603035965,24.1182721,127.73,127.69,23.97611053]
[1741603035966,81.1,127.71,127.69,23.97611053]
[1741603036168,81.1,127.73,127.7,23.97611053]
[1741603036382,19.83,127.74,127.68,23.97611053]
[1741603036383,81.13,127.74,127.71,38.35478361]
[1741603036587,81.13,127.74,127.72,7.8296]
[1741603036779,81.13,127.74,127.71,38.35478361]
[1741603036984,81.13,127.74,127.71,46.18468361]
[1741603038180,0.03,127.74,127.73,38.35478361]
[1741603038391,0.03,127.74,127.72,38.35478361]
[1741603038599,0.03,127.74,127.72,46.18418361]
[1741603038896,0.03,127.74,127.71,46.18478361]
[1741603039071,0.03,127.74,127.7,38.35478361]
[1741603039281,119.48478361,127.74,127.69,46.18618361]
[1741603040101,81.13,127.74,127.69,46.18618361]
[1741603040275,81.13,127.74,127.7,38.35478361]
[1741603040475,127.31328361,127.74,127.69,46.18618361]
[1741603040687,81.13,127.74,127.71,38.35478361]
[1741603041898,81.13,127.74,127.72,38.35478361]
[1741603042394,81.13,127.74,127.71,38.35478361]
[1741603042589,0.03,127.74,127.72,7.8296]
[1741603042974,0.03,127.74,127.72,46.18438361]
[1741603043176,0.03,127.74,127.72,7.8296]
[1741603045378,0.03,127.74,127.7,38.35478361]
[1741603046794,0.03,127.74,127.71,7.8302]
[1741603047096,0.03,127.74,127.72,38.35478361]
[1741603048509,0.03,127.74,127.73,58.35478361]
[1741603049212,0.03,127.74,127.73,46.18378361]
[1741603049381,0.03,127.74,127.72,7.8293]
[1741603049713,81.13,127.74,127.71,7.8299]
[1741603049889,81.13,127.74,127.71,46.18468361]
[1741603051192,81.13,127.74,127.73,38.35478361]
[1741603051393,81.13,127.74,127.72,46.18418361]
[1741603052090,81.13,127.74,127.73,38.35478361]
[1741603053410,0.03,127.75,127.73,86.06776722]
[1741603053595,0.03,127.75,127.74,96.70956722]
[1741603053797,0.03,127.75,127.74,58.35478361]
[1741603055424,0.03,127.75,127.74,66.18318361]
[1741603056625,81.163,127.79,127.75,0.14216157]
[1741603056626,0.063,127.79,127.75,0.14216157]
[1741603056819,0.063,127.79,127.78,38.35478361]
[1741603057425,0.063,127.79,127.78,46.18068361]
[1741603058402,0.063,127.79,127.78,31.76463188]
[1741603060714,0.063,127.79,127.78,23.93873188]
[1741603061033,0.063,127.79,127.77,23.93873188]
[1741603061600,0.063,127.79,127.75,7.8277]
[1741603061601,81.1,127.78,127.75,23.93873188]
[1741603061814,81.1,127.78,127.77,23.93873188]
[1741603062126,81.1,127.78,127.76,23.93873188]
[1741603062727,81.1,127.78,127.75,23.93873188]
[1741603063031,81.1,127.78,127.76,23.93873188]
[1741603063941,81.1,127.78,127.76,31.76573188]
[1741603066512,81.1,127.78,127.74,7.8281]
[1741603066819,81.1,127.78,127.74,31.76683188]
[1741603067214,81.1,127.78,127.75,23.93873188]
[1741603067412,81.1,127.78,127.76,23.93873188]
[1741603067607,81.1,127.78,127.77,23.93873188]
[1741603067812,81.1,127.78,127.76,23.93873188]
[1741603068145,81.1,127.78,127.75,23.93873188]
[1741603068624,81.1,127.78,127.75,31.76593188]
[1741603069435,81.1,127.78,127.76,23.93873188]
[1741603070935,81.1,127.78,127.77,7.8265]
[1741603071433,81.13,127.78,127.77,7.8265]
[1741603071932,81.13,127.78,127.77,31.76523188]
[1741603072137,0.03,127.78,127.77,31.76523188]
[1741603075436,0.03,127.78,127.77,7.8265]
[1741603077536,81.13,127.78,127.74,23.93873188]
[1741603077724,81.13,127.78,127.73,19.5719]
[1741603077928,81.13,127.78,127.74,23.93873188]
[1741603078313,105.06873188,127.78,127.73,23.93873188]
[1741603079442,18.79181043,127.77,127.73,23.93873188]
[1741603079740,18.64964886,127.77,127.72,23.93873188]
[1741603079920,81.1,127.77,127.73,23.93873188]
[1741603080125,81.1,127.77,127.74,23.93873188]
[1741603080439,81.1,127.77,127.75,23.93873188]
[1741603080616,81.1,127.77,127.7,72.87768942]
[1741603080617,81.1,127.77,127.74,23.93873188]
[1741603080817,81.1,127.77,127.73,43.93873188]
[1741603081049,81.1,127.77,127.74,23.93873188]
[1741603081721,81.1,127.77,127.75,7.8277]
[1741603082424,81.1,127.77,127.74,31.76683188]
[1741603082625,81.1,127.77,127.75,23.93873188]
[1741603082842,0.03,127.78,127.74,31.82983188]
[1741603083033,0.03,127.78,127.77,23.93873188]
[1741603083943,0.03,127.78,127.77,31.76523188]
[1741603091751,0.03,127.78,127.77,7.8265]
[1741603092252,0.03,127.78,127.76,7.8269]
[1741603092628,0.03,127.78,127.75,7.8275]
[1741603092824,0.03,127.78,127.74,0.063]
[1741603092825,42.58838074,127.76,127.74,0.063]
[1741603093135,23.93873188,127.76,127.74,0.063]
[1741603093851,125.76061043,127.77,127.74,0.063]
[1741603093852,42.73054231,127.75,127.74,0.063]
[1741603094229,50.55824231,127.75,127.74,0.063]
[1741603095935,18.79181043,127.75,127.74,0.063]
[1741603096543,42.73054231,127.75,127.74,0.063]
[1741603096741,50.70040388,127.75,127.74,0.063]
[1741603097144,42.87270388,127.75,127.74,0.063]
[1741603097937,19.8,127.76,127.74,0.063]
[1741603098849,18.79181043,127.75,127.74,0.063]
[1741603099057,42.73054231,127.75,127.74,0.063]
[1741603099831,42.87270388,127.75,127.74,0.063]
[1741603100640,50.70040388,127.75,127.74,0.063]
[1741603101140,42.87270388,127.75,127.74,0.063]
[1741603101455,18.79181043,127.75,127.74,0.063]
[1741603102352,43.73873188,127.76,127.74,0.063]
[1741603102353,19.8,127.76,127.74,0.063]
[1741603103790,19.83,127.78,127.74,24.00173188]
[1741603103934,0.03,127.78,127.75,23.93873188]
[1741603104336,0.03,127.78,127.74,24.00173188]
[1741603104670,23.96873188,127.78,127.74,0.063]
[1741603104840,23.93873188,127.77,127.74,7.8911]
[1741603105047,18.79181043,127.76,127.74,0.063]
[1741603105862,42.73054231,127.76,127.74,0.063]
[1741603106161,124.98089345,127.75,127.74,0.063]
[1741603109163,51.70859345,127.75,127.74,0.063]
[1741603110866,43.88089345,127.75,127.74,0.063]
[1741603111055,19.97216157,127.78,127.74,0.063]
[1741603111246,0.03,127.78,127.75,23.93873188]
[1741603111769,0.03,127.78,127.74,44.00173188]
[1741603112151,0.03,127.78,127.76,23.93873188]
[1741603112536,0.03,127.78,127.77,7.8265]
[1741603112740,0.03,127.78,127.77,31.76523188]
[1741603113169,0.03,127.78,127.77,7.8265]
[1741603113559,0.03,127.78,127.76,7.8269]
[1741603113773,18.82181043,127.78,127.74,44.00173188]
[1741603113952,18.82181043,127.78,127.74,51.82983188]
[1741603114568,42.76054231,127.78,127.74,27.8911]
[1741603115067,18.82181043,127.78,127.74,51.82983188]
[1741603115261,0.17216157,127.78,127.74,51.82983188]
[1741603115872,81.1,127.77,127.74,20.063]
[1741603116160,81.1,127.77,127.74,7.8913]
[1741603116370,81.1,127.77,127.74,31.83003188]
[1741603119076,81.1,127.77,127.74,0.063]
[1741603120168,81.1,127.77,127.74,24.00173188]
[1741603120371,81.1,127.77,127.75,23.93873188]
[1741603120947,0.03,127.78,127.76,23.93873188]
[1741603121945,0.03,127.78,127.74,0.063]
[1741603122150,0.03,127.78,127.76,23.93873188]
[1741603124577,0.03,127.78,127.76,31.76533188]
[1741603124777,0.03,127.78,127.76,7.8266]
[1741603125780,0.03,127.78,127.76,31.76533188]
[1741603126374,81.24216157,127.77,127.74,0.063]
[1741603126575,18.79181043,127.76,127.74,0.063]
[1741603127085,23.93873188,127.75,127.74,0.063]
[1741603127881,50.41558074,127.76,127.74,0.063]
[1741603128065,26.47684886,127.76,127.74,0.063]
[1741603128261,50.41558074,127.76,127.74,0.063]
[1741603128455,42.58838074,127.76,127.74,0.063]
[1741603128961,18.64964886,127.76,127.74,0.063]
[1741603129169,0.28432314,127.75,127.74,0.063]
[1741603129883,24.22305502,127.75,127.74,0.063]
[1741603130376,0.28432314,127.75,127.74,0.063]
[1741603131168,99.74964886,127.76,127.74,0.063]
[1741603134668,81.1,127.75,127.74,0.063]
[1741603135681,81.1,127.75,127.74,24.00173188]
[1741603137079,81.1,127.75,127.74,0.063]
[1741603138587,42.87270388,127.75,127.74,0.063]
[1741603139087,50.70040388,127.75,127.74,0.063]
[1741603139268,42.87270388,127.75,127.74,0.063]
[1741603139476,50.70040388,127.75,127.74,0.063]
[1741603142274,42.87270388,127.75,127.74,0.063]
[1741603143480,62.67270388,127.75,127.74,0.063]
[1741603143975,19.8,127.75,127.74,0.063]
[1741603144390,18.64964886,127.77,127.74,0.063]
[1741603146903,19.83,127.78,127.74,24.00173188]
[1741603147203,19.83,127.78,127.75,23.93873188]
[1741603148198,19.83,127.78,127.76,23.93873188]
[1741603148668,19.83,127.78,127.75,31.76643188]
[1741603149389,0.03,127.78,127.76,23.93873188]
[1741603149894,0.03,127.78,127.77,23.93873188]
[1741603150290,0.03,127.78,127.77,31.76523188]
[1741603150683,0.03,127.78,127.74,0.063]
[1741603151006,81.1,127.77,127.74,0.063]
[1741603151475,81.1,127.77,127.74,7.8911]
[1741603152202,81.1,127.77,127.74,0.063]
[1741603152407,42.73054231,127.76,127.74,0.063]
[1741603152571,123.97270388,127.75,127.74,0.063]
[1741603152986,99.74964886,127.75,127.74,0.063]
[1741603153208,99.89181043,127.75,127.74,0.063]
[1741603153520,123.97270388,127.75,127.74,0.063]
[1741603153828,74.62853576,127.75,127.74,0.063]
[1741603154396,0.28432314,127.71,127.66,0.063]
[1741603154704,23.93873188,127.71,127.66,24.00173188]
[1741603154882,18.79181043,127.71,127.67,23.93873188]
[1741603155791,0.14216157,127.69,127.66,0.063]
[1741603155995,23.93873188,127.7,127.66,0.063]
[1741603156189,18.79181043,127.71,127.67,23.93873188]
[1741603156387,18.79181043,127.71,127.68,31.77073188]
[1741603156908,18.79181043,127.71,127.67,31.77113188]
[1741603157203,18.79181043,127.72,127.67,31.77113188]
[1741603157706,0.14216157,127.7,127.66,31.83483188]
[1741603157882,24.08089345,127.7,127.66,7.8961]
[1741603158081,18.79181043,127.7,127.67,23.93873188]
[1741603158301,81.1,127.7,127.68,7.832]
[1741603159097,80.1,127.7,127.68,7.832]